bitfinex-derivatives/quotes_BTCF0:USTF0_20250422
["timestamp","ask_amount","ask_price","bid_price","bid_amount"]
[1745287181053,0.1494984,88495.0,88494.0,0.3412997]
[1745287181254,0.1495784,88495.0,88494.0,0.3412997]
[1745287181556,0.1495784,88495.0,88494.0,0.35603702]
[1745287182252,0.1495784,88495.0,88494.0,0.16403702]
[1745287182657,0.1495784,88495.0,88494.0,0.20053702]
[1745287183159,0.1495784,88495.0,88494.0,0.39253702]
[1745287184458,8e-05,88495.0,88494.0,0.39253702]
[1745287184761,8e-05,88495.0,88494.0,0.40767977]
[1745287184961,0.1129984,88495.0,88494.0,0.40767969]
[1745287185162,0.1130784,88495.0,88494.0,0.40767969]
[1745287185465,0.1130784,88495.0,88494.0,0.41767969]
[1745287186564,0.1130784,88495.0,88494.0,0.41830822]
[1745287186754,0.1130784,88495.0,88494.0,0.42830824]
[1745287187257,0.1130784,88495.0,88494.0,0.41253702]
[1745287187560,0.1130784,88495.0,88494.0,0.39253702]
[1745287188163,0.1130784,88495.0,88494.0,0.20053702]
[1745287189362,0.1130784,88495.0,88494.0,0.21053702]
[1745287192171,0.1130784,88495.0,88494.0,0.39253702]
[1745287193764,0.1130784,88495.0,88494.0,0.35603702]
[1745287194265,0.1130784,88495.0,88494.0,0.16403702]
[1745287195268,0.1130784,88495.0,88494.0,0.12773702]
[1745287196064,0.3050784,88495.0,88494.0,0.12773702]
[1745287198172,0.4050784,88495.0,88494.0,0.01473732]
[1745287198372,0.40508,88495.0,88487.0,0.00016951]
[1745287198564,0.40508,88495.0,88477.0,0.3608]
[1745287198565,0.0565083,88481.0,88474.0,0.16921525]
[1745287198765,0.473824,88475.0,88474.0,0.16921525]
[1745287198968,0.1130304,88470.0,88469.0,0.22599966]
[1745287199170,0.7138304,88470.0,88469.0,0.02258433]
[1745287199362,0.7138304,88470.0,88463.0,0.28224931]
[1745287199363,0.113038,88464.0,88463.0,0.28224931]
[1745287199562,0.305758,88464.0,88463.0,0.28224931]
[1745287199766,0.668798,88464.0,88463.0,0.28224931]
[1745287200068,1.078298,88464.0,88463.0,1e-08]
[1745287200266,1.270298,88464.0,88463.0,1e-08]
[1745287200571,0.1130406,88462.0,88461.0,1e-08]
[1745287200767,0.3458006,88462.0,88461.0,1e-08]
[1745287200970,0.7088446,88462.0,88461.0,1e-08]
[1745287201161,0.9008446,88462.0,88461.0,1e-08]
[1745287201765,0.5680846,88462.0,88461.0,1e-08]
[1745287201974,0.5680846,88462.0,88461.0,0.11304191]
[1745287201975,0.3878806,88462.0,88461.0,0.11304191]
[1745287202168,0.19208,88462.0,88461.0,0.11304191]
[1745287202368,0.192,88462.0,88461.0,0.11304191]
[1745287202565,0.1130207,88478.0,88461.0,0.11304191]
[1745287202566,0.00014581,88506.0,88494.0,0.1129997]
[1745287202769,0.00014581,88506.0,88505.0,0.1129857]
[1745287202974,0.20103873,88519.0,88518.0,0.1129691]
[1745287203168,0.20103873,88519.0,88518.0,0.4937691]
[1745287203373,0.22975854,88526.0,88525.0,0.1129601]
[1745287203763,0.00016951,88534.0,88526.0,0.056479]
[1745287203965,0.25847836,88542.0,88541.0,0.1129397]
[1745287204170,0.25847836,88542.0,88537.0,0.0564718]
[1745287204171,0.28719818,88548.0,88547.0,0.1129321]
[1745287204472,0.005,88555.0,88540.0,0.0707]
[1745287204674,0.005,88555.0,88547.0,0.1129321]
[1745287204675,8e-05,88548.0,88547.0,0.1129321]
[1745287205176,0.19208,88548.0,88547.0,0.1129321]
[1745287205370,0.192,88548.0,88547.0,0.5866641]
[1745287205572,0.19208,88548.0,88547.0,0.5866641]
[1745287205970,1.99832,88582.0,88547.0,0.724732]
[1745287206273,0.1129308,88548.0,88547.0,0.666731]
[1745287206464,0.1229308,88548.0,88547.0,0.5538]
[1745287206662,0.2258628,88548.0,88547.0,0.5538]
[1745287206863,0.072,88549.0,88548.0,0.1129308]
[1745287207080,0.08272,88549.0,88548.0,0.0564651]
[1745287207279,0.00011272,88557.0,88556.0,0.1129206]
[1745287207481,0.08283272,88557.0,88556.0,0.1129206]
[1745287207773,0.00011272,88557.0,88556.0,0.1481206]
[1745287207975,0.00011272,88557.0,88556.0,0.2949446]
[1745287208171,0.08272,88567.0,88566.0,0.1129078]
[1745287208367,0.005,88581.0,88566.0,0.4172534]
[1745287208576,0.1128964,88575.0,88574.0,0.3598]
[1745287208878,0.1129053,88569.0,88568.0,0.112904]
[1745287209071,0.00010801,88574.0,88573.0,0.1128989]
[1745287209472,0.192,88575.0,88574.0,0.1128976]
[1745287209672,0.27472,88575.0,88574.0,0.4736976]
[1745287210075,0.2748,88575.0,88574.0,0.4736976]
[1745287210677,0.19408,88575.0,88574.0,0.4736976]
[1745287210881,0.194,88575.0,88574.0,0.4736976]
[1745287211081,0.19408,88575.0,88574.0,0.4716976]
[1745287211389,0.002,88575.0,88574.0,0.4716976]
[1745287211582,0.00208,88575.0,88574.0,0.4716976]
[1745287211775,0.00308,88575.0,88574.0,0.4716976]
[1745287211971,0.08272,88584.0,88576.0,0.0564471]
[1745287212177,0.08272,88584.0,88583.0,0.4736862]
[1745287212378,0.1128849,88584.0,88583.0,0.0564427]
[1745287212571,0.0564434,88583.0,88582.0,0.3608]
[1745287212770,0.0664434,88583.0,88582.0,0.3608]
[1745287212970,0.25173141,88583.0,88582.0,0.3608]
[1745287213176,0.4135234,88583.0,88582.0,0.3608]
[1745287213381,0.28468,88583.0,88582.0,0.4736874]
[1745287213583,0.003,88584.0,88582.0,0.4736874]
[1745287213882,0.005,88607.0,88606.0,0.1128569]
[1745287214083,0.1178556,88607.0,88606.0,0.1128569]
[1745287214282,0.1178556,88607.0,88606.0,0.1497569]
[1745287214583,0.1128327,88625.0,88616.0,0.1128433]
[1745287214781,0.0564145,88628.0,88618.0,0.3608]
[1745287215080,0.112839,88620.0,88619.0,0.0369]
[1745287215874,0.1128403,88619.0,88618.0,0.3608]
[1745287216083,0.3875203,88619.0,88618.0,0.3608]
[1745287216283,0.192,88619.0,88618.0,0.3608]
[1745287216480,0.192,88619.0,88618.0,0.5864856]
[1745287216780,0.19208,88619.0,88618.0,0.5864856]
[1745287216973,0.19208,88619.0,88618.0,0.6233856]
[1745287216974,0.192,88619.0,88618.0,0.6233856]
[1745287217179,0.0564089,88637.0,88618.0,0.737244]
[1745287217483,0.08268,88638.0,88632.0,0.4736238]
[1745287217691,0.00508,88633.0,88632.0,0.4736238]
[1745287217875,0.0337,88653.0,88642.0,0.0564044]
[1745287218077,0.1128034,88648.0,88647.0,0.3608]
[1745287218892,0.1128136,88640.0,88639.0,0.00016921]
[1745287219082,0.2354536,88640.0,88639.0,1e-08]
[1745287219283,0.3482696,88640.0,88639.0,1e-08]
[1745287219584,0.3496943,88640.0,88639.0,1e-08]
[1745287220189,0.1128416,88618.0,88617.0,0.2646295]
[1745287220383,0.112853,88609.0,88608.0,0.3608]
[1745287220687,0.1142777,88609.0,88608.0,0.3608]
[1745287221089,0.3062777,88609.0,88608.0,0.3608]
[1745287221285,0.3062777,88609.0,88599.0,0.0346]
[1745287221286,0.1128645,88600.0,88599.0,0.0346]
[1745287221477,0.1128645,88600.0,88584.0,0.3608]
[1745287221478,0.1128836,88585.0,88584.0,0.3608]
[1745287221684,0.1143083,88585.0,88584.0,0.3608]
[1745287221882,0.1243083,88585.0,88584.0,0.3608]
[1745287222097,0.1972618,88585.0,88584.0,0.3608]
[1745287222279,0.1128874,88582.0,88581.0,0.0339]
[1745287222789,0.2128874,88582.0,88576.0,0.00016931]
[1745287223087,0.1128938,88577.0,88576.0,0.03406931]
[1745287224082,0.1128938,88577.0,88576.0,0.06916931]
[1745287224287,0.08248,88592.0,88577.0,0.0564464]
[1745287224485,0.08248,88592.0,88591.0,0.1128747]
[1745287224680,0.00010801,88601.0,88592.0,0.1128747]
[1745287224890,0.15573675,88630.0,88592.0,0.1128747]
[1745287224891,0.08252,88612.0,88603.0,0.1692855]
[1745287225086,0.1128581,88606.0,88605.0,0.4736581]
[1745287225282,0.1128581,88606.0,88605.0,0.5429581]
[1745287225692,0.1129381,88606.0,88605.0,0.0342]
[1745287225888,0.1128658,88599.0,88598.0,0.0351]
[1745287226088,0.1128658,88599.0,88597.0,0.00016931]
[1745287226089,0.1128671,88598.0,88597.0,0.00016931]
[1745287226285,0.1828671,88598.0,88597.0,0.00016931]
[1745287226482,0.192,88599.0,88598.0,0.1128671]
[1745287226685,0.3048658,88599.0,88598.0,0.5078671]
[1745287226892,0.192,88599.0,88598.0,0.5477671]
[1745287227091,0.19208,88599.0,88598.0,0.5477671]
[1745287227301,8e-05,88599.0,88598.0,0.5477671]
[1745287227486,0.1129458,88599.0,88598.0,0.5457671]
[1745287228001,8e-05,88599.0,88598.0,0.5457671]
[1745287228495,0.1128484,88613.0,88611.0,0.1128505]
[1745287228698,0.05659236,88614.0,88611.0,0.4736505]
[1745287229284,0.0826,88612.0,88611.0,0.4736505]
[1745287229491,0.08252,88612.0,88611.0,0.4736505]
[1745287229690,0.0826,88612.0,88611.0,0.4786505]
[1745287230291,0.0826,88612.0,88611.0,0.4756505]
[1745287230594,0.1692394,88632.0,88631.0,0.112825]
[1745287230784,0.1692352,88633.0,88632.0,0.1128238]
[1745287231390,0.1693152,88633.0,88632.0,0.1810238]
[1745287231899,0.0564046,88644.0,88643.0,0.1692096]
[1745287232194,0.0564046,88644.0,88643.0,0.5300096]
[1745287232395,0.0564046,88644.0,88643.0,0.4172037]
[1745287232993,0.05782852,88644.0,88643.0,0.4172037]
[1745287233196,0.05890852,88644.0,88643.0,0.4172037]
[1745287233493,0.05890852,88644.0,88643.0,0.4192037]
[1745287233696,0.05890852,88644.0,88643.0,0.3628]
[1745287234087,0.25090852,88644.0,88643.0,0.3628]
[1745287234594,0.2513829,88644.0,88643.0,0.3628]
[1745287234992,0.2513829,88644.0,88643.0,0.1148098]
[1745287235300,0.2503829,88644.0,88643.0,0.003]
[1745287235594,0.1128174,88637.0,88626.0,0.035]
[1745287235984,0.1692386,88633.0,88632.0,0.1128168]
[1745287236183,0.192,88637.0,88632.0,0.1692268]
[1745287236394,0.1128212,88635.0,88634.0,0.1692318]
[1745287236596,0.1128212,88635.0,88634.0,0.2029318]
[1745287236794,0.11566826,88635.0,88634.0,0.2029318]
[1745287237092,0.30766826,88635.0,88634.0,0.2029318]
[1745287237493,0.34066826,88635.0,88634.0,0.2029318]
[1745287237687,0.34114264,88635.0,88634.0,0.2029318]
[1745287237892,0.34114264,88635.0,88634.0,0.0337]
[1745287238199,0.37474264,88635.0,88634.0,0.1465212]
[1745287238800,0.37521702,88635.0,88634.0,0.0337]
[1745287239094,0.19579582,88635.0,88634.0,0.1128212]
[1745287239298,0.05187169,88635.0,88634.0,0.1128212]
[1745287239485,0.05187169,88635.0,88634.0,0.2256452]
[1745287239686,0.05195169,88635.0,88634.0,0.2266452]
[1745287239893,0.05242607,88635.0,88634.0,0.5884452]
[1745287240092,0.0043502,88635.0,88634.0,0.5884452]
[1745287240289,0.0043502,88635.0,88634.0,0.5874452]
[1745287240497,0.0043502,88635.0,88634.0,0.5884452]
[1745287240697,0.1171701,88635.0,88634.0,0.3628]
[1745287240898,0.1171701,88635.0,88634.0,0.4756212]
[1745287241105,0.11764253,88635.0,88634.0,0.4756212]
[1745287241492,0.11764253,88635.0,88634.0,0.4776212]
[1745287241904,0.11764253,88635.0,88634.0,0.4786212]
[1745287242204,0.31011496,88635.0,88634.0,0.4786212]
[1745287242391,0.34471496,88635.0,88634.0,0.4786212]
[1745287242995,0.34463496,88635.0,88634.0,0.4786212]
[1745287243195,0.19776749,88635.0,88634.0,0.4786212]
[1745287243392,0.11295171,88646.0,88645.0,0.1128072]
[1745287243999,0.1128059,88646.0,88645.0,0.1802072]
[1745287244194,0.1128859,88646.0,88645.0,0.1802072]
[1745287244394,0.1128059,88646.0,88645.0,0.1802072]
[1745287244593,0.1128859,88646.0,88645.0,0.1802072]
[1745287245303,0.1128859,88646.0,88645.0,0.1812072]
[1745287245504,0.1128859,88646.0,88645.0,0.1822072]
[1745287246803,8e-05,88646.0,88645.0,0.1822072]
[1745287247004,0.1127986,88656.0,88655.0,0.056396]
[1745287247409,0.005,88659.0,88658.0,0.1127907]
[1745287248007,0.1127831,88668.0,88667.0,0.112775]
[1745287248207,0.0564752,88659.0,88658.0,0.192]
[1745287248507,0.1128694,88659.0,88658.0,0.3037907]
[1745287248697,0.1128694,88659.0,88658.0,0.191]
[1745287248907,0.1138694,88659.0,88658.0,0.3037907]
[1745287249209,0.1138694,88659.0,88658.0,0.1127907]
[1745287249506,0.1137894,88659.0,88658.0,0.1127907]
[1745287249695,0.1138694,88659.0,88658.0,0.1137907]
[1745287250107,0.1138694,88659.0,88658.0,0.001]
[1745287250297,0.3411694,88659.0,88658.0,0.1137907]
[1745287250497,0.34259089,88659.0,88658.0,0.1137907]
[1745287250904,0.34259089,88659.0,88658.0,0.001]
[1745287252608,0.112797,88653.0,88652.0,0.0282]
[1745287253316,0.304797,88653.0,88652.0,0.0282]
[1745287253503,0.33931849,88653.0,88652.0,0.0282]
[1745287253906,0.19342149,88653.0,88652.0,0.1127983]
[1745287254114,0.00150149,88653.0,88652.0,0.1127983]
[1745287254308,0.00150149,88653.0,88652.0,0.22559829]
[1745287254507,0.0356,88669.0,88652.0,0.36279999]
[1745287254710,0.3608,88676.0,88669.0,0.1127767]
[1745287254711,0.00010801,88670.0,88669.0,0.1127767]
[1745287255018,0.08236,88671.0,88670.0,0.1127754]
[1745287255218,0.0563853,88674.0,88672.0,0.1127716]
[1745287255410,0.1951322,88673.0,88672.0,0.1127716]
[1745287256003,0.08236,88673.0,88672.0,0.1127716]
[1745287256213,0.3871316,88673.0,88672.0,0.1127716]
[1745287256620,0.3872116,88673.0,88672.0,0.1127716]
[1745287257116,0.0563865,88672.0,88666.0,0.02819]
[1745287257417,0.1127792,88668.0,88667.0,0.1127787]
[1745287257817,0.1127792,88667.0,88666.0,0.02819]
[1745287258205,0.35039976,88667.0,88666.0,0.02819]
[1745287258410,0.40849976,88667.0,88666.0,0.02819]
[1745287259116,0.40849976,88667.0,88654.0,0.1127946]
[1745287259117,0.112783,88664.0,88654.0,0.1127946]
[1745287259303,0.112783,88664.0,88623.0,0.27944957]
[1745287259807,0.112783,88664.0,88651.0,0.0563993]
[1745287260008,0.112783,88664.0,88647.0,0.41737151]
[1745287260209,0.30620356,88664.0,88654.0,0.0563978]
[1745287260415,0.19342056,88664.0,88647.0,0.36096921]
[1745287260610,0.1128034,88648.0,88647.0,0.47377391]
[1745287260813,0.11435402,88648.0,88647.0,0.47377391]
[1745287261114,0.30635402,88648.0,88647.0,0.47377391]
[1745287261913,0.30635402,88648.0,88647.0,0.47577391]
[1745287262304,0.19355062,88648.0,88647.0,0.47577391]
[1745287262705,0.19363062,88648.0,88647.0,0.47577391]
[1745287263116,0.00163062,88648.0,88647.0,0.47577391]
[1745287263313,0.00163062,88648.0,88647.0,0.47677391]
[1745287263820,0.00010801,88661.0,88660.0,0.1127881]
[1745287264115,0.1127869,88663.0,88662.0,0.1127843]
[1745287264316,0.0563927,88663.0,88662.0,0.1127843]
[1745287264507,0.0563909,88665.0,88664.0,0.112783]
[1745287265109,0.2483909,88665.0,88664.0,0.112783]
[1745287265310,0.192,88665.0,88664.0,0.112783]
[1745287265707,0.19208,88665.0,88664.0,0.112783]
[1745287266109,8e-05,88665.0,88664.0,0.113783]
[1745287266321,8e-05,88665.0,88664.0,0.114783]
[1745287266523,0.1127818,88666.0,88664.0,0.002]
[1745287266821,0.1127818,88666.0,88665.0,0.1127805]
[1745287267115,0.1127818,88666.0,88664.0,0.002]
[1745287267116,0.1127818,88665.0,88664.0,0.002]
[1745287267318,0.1127818,88665.0,88664.0,0.114783]
[1745287267820,0.1127818,88665.0,88664.0,0.113783]
[1745287268315,0.3047818,88665.0,88664.0,0.112783]
[1745287268518,0.3047818,88665.0,88664.0,0.113783]
[1745287269922,0.3047818,88665.0,88664.0,0.148683]
[1745287270222,0.3048618,88665.0,88664.0,0.148683]
[1745287272517,0.19208,88665.0,88664.0,0.148683]
[1745287272712,0.19208,88665.0,88664.0,0.509483]
[1745287272916,0.192,88665.0,88664.0,0.509483]
[1745287273115,0.19208,88665.0,88664.0,0.509483]
[1745287273713,0.3048618,88665.0,88664.0,0.509483]
[1745287275122,0.19208,88665.0,88664.0,0.509483]
[1745287276529,0.192,88665.0,88664.0,0.509483]
[1745287276822,0.19208,88665.0,88664.0,0.509483]
[1745287277227,8e-05,88665.0,88664.0,0.509483]
[1745287277421,0.1128618,88665.0,88664.0,0.3967]
[1745287277617,0.1128618,88665.0,88664.0,0.509483]
[1745287277819,0.1128618,88665.0,88664.0,0.3967]
[1745287278019,8e-05,88665.0,88664.0,0.509483]
[1745287278226,0.1128618,88665.0,88664.0,0.509483]
[1745287278528,0.1127818,88665.0,88664.0,0.509483]
[1745287278726,0.1128618,88665.0,88664.0,0.509483]
[1745287279117,0.3048618,88665.0,88664.0,0.509483]
[1745287280526,0.19208,88665.0,88664.0,0.509483]
[1745287280722,0.00010801,88672.0,88671.0,0.1127741]
[1745287281029,0.0563852,88674.0,88673.0,0.1691504]
[1745287281432,0.1127681,88676.0,88675.0,0.1691505]
[1745287281730,0.1127681,88676.0,88675.0,0.056384]
[1745287282132,0.1127681,88676.0,88675.0,0.091184]
[1745287282429,0.3047681,88676.0,88675.0,0.0348]
[1745287282629,0.3399681,88676.0,88675.0,0.0348]
[1745287282930,0.3399681,88676.0,88673.0,0.001]
[1745287282931,0.1127703,88674.0,88673.0,0.001]
[1745287283137,0.3047703,88674.0,88673.0,0.001]
[1745287283336,0.3047703,88674.0,88673.0,0.1137716]
[1745287283532,0.3047703,88674.0,88673.0,0.1127716]
[1745287284129,0.3047703,88674.0,88673.0,0.1475716]
[1745287284329,0.3047703,88674.0,88673.0,0.1485716]
[1745287284731,0.192,88674.0,88673.0,0.1485716]
[1745287285140,8e-05,88674.0,88673.0,0.1853716]
[1745287285544,8e-05,88674.0,88673.0,0.1843716]
[1745287285734,8e-05,88674.0,88673.0,0.19378658]
[1745287286230,8e-05,88674.0,88673.0,0.19478658]
[1745287287236,1e-08,88683.0,88673.0,0.44478698]
[1745287287435,0.0348,88695.0,88690.0,0.0563745]
[1745287287637,0.0348,88695.0,88694.0,0.4735449]
[1745287288045,0.03488,88695.0,88694.0,0.4735449]
[1745287288442,0.08228,88701.0,88699.0,0.1127385]
[1745287289031,0.0563676,88702.0,88699.0,0.1127385]
[1745287289246,0.292,88700.0,88699.0,0.12761581]
[1745287289644,0.4047373,88700.0,88699.0,0.01487731]
[1745287289848,0.4047373,88700.0,88699.0,0.12761581]
[1745287290150,0.292,88700.0,88699.0,0.12761581]
[1745287290536,0.294,88700.0,88699.0,0.12761581]
[1745287290741,0.294,88700.0,88699.0,0.16241581]
[1745287290941,0.294,88700.0,88699.0,0.17464281]
[1745287291145,0.102,88700.0,88699.0,0.17464281]
[1745287291334,0.10208,88700.0,88699.0,0.17464281]
[1745287291536,0.005,88711.0,88710.0,0.1127246]
[1745287291835,0.005,88711.0,88710.0,0.1249516]
[1745287292039,0.00508,88711.0,88710.0,0.1949951]
[1745287292640,0.00508,88711.0,88710.0,0.2104829]
[1745287292841,0.1187233,88711.0,88710.0,0.2104829]
[1745287293043,0.005,88737.0,88719.0,0.0563561]
[1745287293341,0.005,88737.0,88735.0,0.1126923]
[1745287293536,0.005,88737.0,88736.0,0.194962]
[1745287293741,0.1177703,88737.0,88736.0,0.0122705]
[1745287293937,0.1177703,88737.0,88727.0,0.00846978]
[1745287293938,0.0563473,88734.0,88727.0,0.00846978]
[1745287294144,0.1127076,88724.0,88720.0,0.0154878]
[1745287294346,0.0341,88723.0,88721.0,0.0326]
[1745287294548,0.1127093,88722.0,88721.0,0.0326]
[1745287295445,0.1468093,88722.0,88721.0,0.0336]
[1745287295643,0.1468093,88722.0,88721.0,0.001]
[1745287295844,0.1468093,88722.0,88696.0,0.0563707]
[1745287295845,0.0563591,88716.0,88710.0,0.3608]
[1745287296037,0.3608,88711.0,88702.0,0.3608]
[1745287296241,0.1127335,88703.0,88702.0,0.3608]
[1745287296445,0.0966487,88691.0,88690.0,0.01502101]
[1745287296635,0.1066487,88691.0,88690.0,0.00195124]
[1745287296841,0.1066487,88691.0,88690.0,0.00169124]
[1745287297243,0.3657487,88691.0,88690.0,0.00169124]
[1745287297448,0.3557487,88691.0,88690.0,0.00169124]
[1745287297641,0.3557487,88691.0,88690.0,0.00569124]
[1745287298154,0.3557487,88691.0,88690.0,0.36349124]
[1745287298342,0.0563724,88695.0,88690.0,0.36349124]
[1745287298343,0.11291175,88699.0,88698.0,0.1127398]
[1745287298544,0.11291175,88699.0,88698.0,0.4735398]
[1745287299354,0.36136105,88699.0,88698.0,0.3608]
[1745287299552,0.39376105,88699.0,88698.0,0.3608]
[1745287299952,0.39376105,88699.0,88698.0,0.37662414]
[1745287300453,0.39376105,88699.0,88698.0,0.37762414]
[1745287300639,0.36136105,88699.0,88698.0,0.37762414]
[1745287300841,0.36136105,88699.0,88698.0,0.52476394]
[1745287301246,0.36136105,88699.0,88698.0,0.52576394]
[1745287301453,0.36136105,88699.0,88698.0,0.52676394]
[1745287302351,0.16936105,88699.0,88698.0,0.52676394]
[1745287302952,0.23676105,88699.0,88698.0,0.41402414]
[1745287303254,0.42876105,88699.0,88698.0,0.41402414]
[1745287303751,0.52876105,88699.0,88698.0,0.01882414]
[1745287304147,0.55356105,88699.0,88698.0,0.01882414]
[1745287304347,0.1127487,88691.0,88690.0,0.3608]
[1745287304549,0.1127589,88683.0,88682.0,0.00016911]
[1745287304856,0.0563801,88682.0,88663.0,0.0326]
[1745287305055,0.112783,88664.0,88663.0,0.2367728]
[1745287305249,0.112783,88664.0,88663.0,0.0676]
[1745287305647,0.112783,88664.0,88663.0,0.035]
[1745287306048,0.180383,88664.0,88663.0,0.04728237]
[1745287306350,0.338083,88664.0,88663.0,0.16006667]
[1745287306550,0.338083,88664.0,88663.0,0.16406667]
[1745287306751,0.304783,88664.0,88663.0,0.19996667]
[1745287307165,0.304783,88664.0,88663.0,0.20296667]
[1745287307656,0.192,88664.0,88663.0,0.20296667]
[1745287307857,0.19208,88664.0,88663.0,0.20296667]
[1745287308157,8e-05,88664.0,88663.0,0.20296667]
[1745287308958,0.112863,88664.0,88663.0,0.20296667]
[1745287309550,8e-05,88664.0,88663.0,0.20296667]
[1745287310047,0.112863,88664.0,88663.0,0.20296667]
[1745287310456,0.112863,88664.0,88663.0,0.09018237]
[1745287310946,0.112863,88664.0,88663.0,0.20296667]
[1745287311151,0.372363,88664.0,88663.0,0.16706667]
[1745287311560,0.372363,88664.0,88663.0,0.01928237]
[1745287312050,0.485147,88664.0,88663.0,0.007]
[1745287312250,0.485147,88664.0,88663.0,1e-08]
[1745287312251,0.585147,88664.0,88663.0,1e-08]
[1745287313154,0.1127919,88657.0,88656.0,0.0359]
[1745287313658,0.3159721,88664.0,88663.0,0.1127843]
[1745287313659,0.19208,88664.0,88663.0,0.1127843]
[1745287313962,0.304783,88664.0,88663.0,0.1127843]
[1745287314169,0.390223,88664.0,88663.0,0.1127843]
[1745287314457,0.490223,88664.0,88663.0,0.1127843]
[1745287314656,0.490223,88664.0,88663.0,0.1486843]
[1745287315055,0.524223,88664.0,88663.0,0.1486843]
[1745287315250,0.524223,88664.0,88660.0,0.3608]
[1745287315251,0.1127869,88661.0,88660.0,0.3608]
[1745287315451,0.2127869,88661.0,88660.0,0.3608]
[1745287316052,0.4047869,88661.0,88660.0,0.3608]
[1745287316356,0.4047869,88661.0,88660.0,0.48918657]
[1745287316558,0.3047869,88661.0,88660.0,0.48918657]
[1745287316862,0.27836,88661.0,88660.0,0.48918657]
[1745287317358,0.27836,88661.0,88660.0,0.55838657]
[1745287317565,0.3911469,88661.0,88660.0,0.55838657]
[1745287317762,0.3912269,88661.0,88660.0,0.55838657]
[1745287319061,0.19308,88661.0,88660.0,0.55838657]
[1745287319364,0.00108,88661.0,88660.0,0.55838657]
[1745287319559,0.1138669,88661.0,88660.0,0.44559847]
[1745287319955,0.1127869,88661.0,88660.0,0.55838657]
[1745287320162,0.1127869,88661.0,88660.0,0.55938657]
[1745287320354,0.1128669,88661.0,88660.0,0.55938657]
[1745287320562,8e-05,88661.0,88660.0,0.55938657]
[1745287320959,0.1127869,88661.0,88660.0,0.55938657]
[1745287321162,0.1128669,88661.0,88660.0,0.55938657]
[1745287323065,8e-05,88661.0,88660.0,0.55938657]
[1745287323872,0.1128669,88661.0,88660.0,0.55938657]
[1745287324068,0.3048669,88661.0,88660.0,0.55938657]
[1745287324772,0.3048669,88661.0,88660.0,0.55838657]
[1745287324962,0.3048669,88661.0,88660.0,0.55938657]
[1745287325477,0.3048669,88661.0,88660.0,0.57686021]
[1745287325667,0.3048669,88661.0,88660.0,0.57686161]
[1745287325869,0.19208,88661.0,88660.0,0.57686161]
[1745287326173,8e-05,88661.0,88660.0,0.55938657]
[1745287326474,8e-05,88661.0,88660.0,0.56038657]
[1745287327371,0.1128669,88661.0,88660.0,0.55938657]
[1745287327569,0.1128669,88661.0,88660.0,0.56038657]
[1745287328173,0.3048669,88661.0,88660.0,0.56038657]
[1745287329076,0.3048669,88661.0,88660.0,0.55938657]
[1745287329277,0.3048669,88661.0,88660.0,0.56038657]
[1745287329769,0.3716669,88661.0,88660.0,0.56038657]
[1745287329969,0.4372669,88661.0,88660.0,0.44759847]
[1745287330267,0.4716669,88661.0,88660.0,0.44759847]
[1745287330468,0.3716669,88661.0,88660.0,0.44759847]
[1745287330669,0.3716669,88661.0,88660.0,0.41169847]
[1745287330864,0.4716669,88661.0,88660.0,0.41169847]
[1745287331061,0.4716669,88661.0,88660.0,0.37839847]
[1745287331870,0.3716669,88661.0,88660.0,0.37839847]
[1745287332166,0.4716669,88661.0,88660.0,0.37839847]
[1745287332368,0.471668,88661.0,88643.0,0.3608]
[1745287332565,0.1128187,88636.0,88635.0,0.3608]
[1745287333169,0.4048187,88636.0,88635.0,0.3608]
[1745287333772,0.1128199,88635.0,88634.0,0.3608]
[1745287334071,0.3048199,88635.0,88634.0,0.4736212]
[1745287334768,0.3048199,88635.0,88634.0,0.3608]
[1745287334968,0.3048199,88635.0,88634.0,0.3963]
[1745287335185,0.192,88635.0,88634.0,0.5121212]
[1745287335369,0.0564014,88649.0,88634.0,0.5121212]
[1745287335370,0.00027722,88644.0,88642.0,0.112811]
[1745287335572,0.00027722,88644.0,88642.0,0.473611]
[1745287336270,0.00027722,88644.0,88642.0,0.544811]
[1745287336464,0.00016921,88644.0,88642.0,0.544811]
[1745287336669,0.08544,88643.0,88642.0,0.544811]
[1745287337378,0.08544,88643.0,88642.0,0.548811]
[1745287337874,0.1982498,88643.0,88642.0,0.548811]
[1745287338465,0.1982498,88643.0,88642.0,0.56553593]
[1745287338974,0.1982498,88643.0,88642.0,0.436]
[1745287339277,0.00026573,88660.0,88642.0,1.45409149]
[1745287339579,0.11225296,88700.0,88642.0,1.45409149]
[1745287339580,0.0563811,88681.0,88680.0,0.1127627]
[1745287339770,0.0563811,88681.0,88680.0,0.4735627]
[1745287340670,0.0564611,88681.0,88680.0,0.4735627]
[1745287341274,0.0564611,88681.0,88680.0,0.4745627]
[1745287341473,0.0564611,88681.0,88680.0,0.4735627]
[1745287341677,0.0564611,88681.0,88680.0,0.4725627]
[1745287341878,0.0564611,88681.0,88680.0,0.4811954]
[1745287342376,8e-05,88681.0,88680.0,0.5140954]
[1745287342577,0.2028414,88681.0,88680.0,0.3608]
[1745287342776,0.1128414,88681.0,88680.0,0.3608]
[1745287342978,0.1127627,88680.0,88679.0,0.0349]
[1745287343174,0.2819627,88680.0,88679.0,0.0349]
[1745287343379,0.1819627,88680.0,88679.0,0.0349]
[1745287343674,0.1451627,88680.0,88679.0,0.0349]
[1745287344071,0.1451627,88680.0,88679.0,0.147664]
[1745287344467,0.1471627,88680.0,88679.0,0.0349]
[1745287344672,0.1491627,88680.0,88679.0,0.0349]
[1745287345071,0.1471627,88680.0,88679.0,0.0349]
[1745287345268,0.1839627,88680.0,88679.0,0.0349]
[1745287345473,0.1859627,88680.0,88679.0,0.0349]
[1745287345672,0.2859627,88680.0,88679.0,0.0349]
[1745287345870,0.1127691,88675.0,88674.0,0.3608]
[1745287346471,0.1127691,88675.0,88674.0,0.3932]
[1745287347771,0.1137691,88675.0,88674.0,0.3932]
[1745287348177,0.1127691,88675.0,88674.0,0.4299]
[1745287348370,0.1137691,88675.0,88674.0,0.4299]
[1745287348975,0.001,88675.0,88674.0,0.5426703]
[1745287349170,0.1137691,88675.0,88674.0,0.4299]
[1745287349575,0.1138491,88675.0,88674.0,0.4299]
[1745287349979,0.1148491,88675.0,88674.0,0.4299]
[1745287350278,0.1138491,88675.0,88674.0,0.4299]
[1745287351174,0.1138491,88675.0,88674.0,0.4309]
[1745287351378,0.1128491,88675.0,88674.0,0.4299]
[1745287351568,0.1138491,88675.0,88674.0,0.4309]
[1745287353678,0.1128491,88675.0,88674.0,0.4309]
[1745287353882,0.1138491,88675.0,88674.0,0.4309]